bitfinex-derivatives/quotes_ETHF0:USTF0_20240822
["timestamp","ask_amount","ask_price","bid_price","bid_amount"]
[1724334808573,0.0057288,2620.8,2620.7,0.00404687]
[1724334808876,0.0057288,2620.8,2620.7,0.38553687]
[1724334809083,0.0057288,2620.8,2620.7,0.00404687]
[1724334809776,0.0057288,2620.8,2620.7,3.21184687]
[1724334809979,0.0057288,2620.8,2620.7,0.00404687]
[1724334811582,0.0057288,2620.8,2620.7,0.38553687]
[1724334811986,0.0057288,2620.8,2620.7,0.00404687]
[1724334812185,0.0057288,2620.8,2620.7,0.38553687]
[1724334812382,0.0057288,2620.8,2620.7,0.00404687]
[1724334812986,0.0057288,2620.8,2620.7,4.20153687]
[1724334813490,0.0057288,2620.8,2620.7,3.82004687]
[1724334813688,0.0057288,2620.8,2620.7,0.00404687]
[1724334814092,0.0057288,2620.8,2620.7,0.38553687]
[1724334814590,0.0057288,2620.8,2620.7,9.20153687]
[1724334815385,8.8e-06,2620.8,2620.7,10.15525687]
[1724334815792,8.8e-06,2620.8,2620.7,11.10897687]
[1724334816385,0.00293904,2621.2,2621.1,0.38143]
[1724334816586,0.00293904,2621.2,2621.1,3.58923]
[1724334816884,0.00293904,2621.2,2621.1,7.75883]
[1724334817190,0.95307,2622.5,2621.1,13.33095]
[1724334817382,0.38128,2622.2,2621.6,3.2078]
[1724334817587,3.5748,2622.6,2621.6,3.2135288]
[1724334817588,0.38126,2622.3,2621.6,3.2135288]
[1724334817890,0.95309,2622.5,2621.6,3.2135288]
[1724334818192,0.3813,2622.0,2621.6,3.2135288]
[1724334818490,4.16094,2622.3,2621.6,3.2135288]
[1724334818790,0.95314,2622.3,2621.6,0.0057288]
[1724334819097,0.3813,2622.0,2621.8,3.2078]
[1724334819495,4.1957,2622.0,2621.8,3.2078]
[1724334819798,4.1957,2622.0,2621.6,0.0057288]
[1724334819799,0.38131,2621.9,2621.6,0.0057288]
[1724334820095,0.95314,2622.3,2621.6,0.3870788]
[1724334820391,0.95314,2622.3,2621.7,3.2078]
[1724334820392,0.38133,2621.8,2621.7,3.2078]
[1724334820594,0.38133,2621.8,2621.6,0.0057288]
[1724334820792,0.3651,2622.0,2621.7,3.2078]
[1724334820989,0.3651,2622.0,2621.7,0.38133]
[1724334821183,0.3651,2622.0,2621.6,0.0057288]
[1724334821496,0.38134,2621.7,2621.6,0.0057288]
[1724334821795,0.3651,2622.0,2621.6,0.0057288]
[1724334822384,0.3651,2622.0,2621.7,0.38133]
[1724334822587,0.3651,2622.0,2621.6,0.0057288]
[1724334822794,0.38131,2621.9,2621.6,0.0057288]
[1724334823087,0.74641,2622.0,2621.6,0.3870788]
[1724334823289,0.38131,2621.9,2621.6,0.3870788]
[1724334823489,0.3651,2622.0,2621.7,0.38134]
[1724334823694,0.3651,2622.0,2621.6,0.0057288]
[1724334823895,3.2078,2622.3,2621.8,3.2078]
[1724334824084,3.5824,2622.3,2622.0,0.38129]
[1724334824986,3.2078,2622.3,2622.2,0.38127]
[1724334825190,4.089,2622.4,2622.2,0.38127]
[1724334825385,0.00422072,2622.5,2622.2,0.38127]
[1724334825588,0.00422072,2622.5,2622.4,6.592]
[1724334825791,0.00422072,2622.5,2622.4,3.58904]
[1724334826101,0.00422072,2622.5,2622.4,12.40264]
[1724334827298,0.00422072,2622.5,2622.4,7.0214]
[1724334827607,3.81782072,2622.5,2622.4,3.2078]
[1724334828098,0.00422072,2622.5,2622.3,10.18104]
[1724334828300,0.00422072,2622.5,2622.4,0.38124]
[1724334828599,0.00422072,2622.5,2622.4,4.58044]
[1724334828799,0.00422072,2622.5,2622.4,9.58044]
[1724334829192,3.2078,2623.5,2622.4,9.1992]
[1724334829394,3.2078,2623.5,2623.2,6.592]
[1724334830295,3.21201168,2623.5,2623.2,6.59661224]
[1724334830799,0.00421168,2623.5,2623.2,6.59661224]
[1724334830997,0.00421168,2623.5,2623.3,0.3811]
[1724334831298,0.00421168,2623.5,2623.2,6.97772224]
[1724334831498,0.00421168,2623.5,2623.2,6.59661224]
[1724334831891,0.00421168,2623.5,2623.3,0.3811]
[1724334832091,0.00421168,2623.5,2623.2,6.97773224]
[1724334832293,0.00421168,2623.5,2623.4,3.58889]
[1724334832492,0.00421168,2623.5,2623.4,3.2078]
[1724334833003,0.00421168,2623.5,2623.4,12.0198]
[1724334833202,0.00421168,2623.5,2623.3,0.3697]
[1724334833498,0.3811,2623.4,2623.2,0.00461224]
[1724334833804,0.00421168,2623.5,2623.2,0.00461224]
[1724334834103,0.38530168,2623.5,2623.2,0.00461224]
[1724334834290,0.38109,2623.4,2623.2,0.00461224]
[1724334834489,0.00421168,2623.5,2623.2,0.00461224]
[1724334834698,0.38529168,2623.5,2623.2,0.00461224]
[1724334834903,0.00421168,2623.5,2623.2,0.00461224]
[1724334835095,0.00421168,2623.5,2623.2,6.59661224]
[1724334835295,0.38111,2623.3,2623.2,3.21241224]
[1724334835597,0.7337,2623.4,2623.2,3.21241224]
[1724334835792,0.3526,2623.4,2623.2,3.21241224]
[1724334836192,0.00421168,2623.5,2623.2,6.59661224]
[1724334836394,0.00421168,2623.5,2623.4,0.38109]
[1724334836699,0.00421168,2623.5,2623.4,4.19309]
[1724334837198,0.3526,2624.1,2623.4,4.19309]
[1724334837199,0.38092,2624.6,2624.0,0.381]
[1724334837403,3.2078,2624.9,2623.4,8.812]
[1724334837404,3.2078,2624.9,2624.5,6.592]
[1724334837796,0.38091,2624.7,2624.3,3.2078]
[1724334837998,0.38092,2624.6,2624.2,6.592]
[1724334838194,3.2078,2624.9,2624.2,6.592]
[1724334838195,0.38091,2624.7,2624.2,6.592]
[1724334838405,0.0040797,2624.6,2624.1,3.2078]
[1724334838595,0.38098,2624.2,2624.1,0.00571777]
[1724334838995,0.3488,2624.5,2624.1,0.00571777]
[1724334838996,0.3850097,2624.6,2624.1,7.02391777]
[1724334839194,0.0040797,2624.6,2624.1,3.21351777]
[1724334839400,0.0040797,2624.6,2624.3,6.592]
[1724334839808,0.0040797,2624.6,2624.1,0.00571777]
[1724334840000,0.0040797,2624.6,2624.1,3.21351777]
[1724334840501,0.3849997,2624.6,2624.1,3.21351777]
[1724334840706,0.38098,2624.2,2624.1,0.00571777]
[1724334841092,3.2118797,2624.6,2624.1,0.00571777]
[1724334841292,0.38095,2624.4,2624.1,0.00571777]
[1724334841603,0.38094,2624.5,2624.1,0.00571777]
[1724334841901,3.2118797,2624.6,2624.1,0.00571777]
[1724334841902,0.0040797,2624.6,2624.1,0.00571777]
[1724334842104,0.38098,2624.2,2624.1,0.00571777]
[1724334842507,0.95261,2623.8,2623.2,0.00461224]
[1724334842697,8.8104,2624.2,2623.2,0.00461224]
[1724334842698,0.3593,2623.7,2623.2,0.00461224]
[1724334843110,0.38111,2623.3,2623.2,0.00461224]
[1724334843496,4.19311,2623.3,2623.2,0.00461224]
[1724334843701,9.19311,2623.3,2623.2,0.00461224]
[1724334843903,4.19311,2623.3,2623.2,0.00461224]
[1724334844606,4.19311,2623.3,2623.0,0.00571777]
[1724334844907,3.812,2623.3,2623.0,0.00571777]
[1724334845098,4.19312,2623.3,2623.0,0.00571777]
[1724334845307,4.55811,2623.3,2623.0,0.00571777]
[1724334845505,4.177,2623.3,2623.0,0.00571777]
[1724334845693,4.177,2623.3,2623.0,0.00866837]
[1724334845694,0.38114,2623.1,2623.0,0.00866837]
[1724334845899,0.365,2623.3,2623.0,0.00866837]
[1724334846205,0.38113,2623.2,2623.0,0.00866837]
[1724334846408,0.365,2623.3,2623.0,0.00866837]
[1724334846809,3.21348101,2623.5,2623.0,0.00866837]
[1724334847300,0.00568101,2623.5,2623.4,0.38109]
[1724334847610,0.00568101,2623.5,2623.2,0.3619]
[1724334848111,0.00568101,2623.5,2623.3,0.38111]
[1724334848297,0.00568101,2623.5,2623.2,0.3619]
[1724334848702,0.00568101,2623.5,2623.0,0.00866837]
[1724334848703,0.00568101,2623.5,2623.0,0.38980837]
[1724334848900,0.00568101,2623.5,2623.0,3.21646837]
[1724334849103,0.00568101,2623.5,2623.0,0.00866837]
[1724334849616,0.38676101,2623.5,2623.0,0.00866837]
[1724334850112,0.38112,2623.3,2623.0,0.00866837]
[1724334850302,0.3811,2623.4,2623.0,0.00866837]
[1724334850502,0.38111,2623.3,2623.0,0.00866837]
[1724334850706,0.38112,2623.2,2623.0,0.00866837]
[1724334851014,0.38113,2623.1,2623.0,0.00866837]
[1724334851201,7.40656101,2623.5,2623.0,0.00866837]
[1724334851404,0.38109,2623.4,2623.0,0.00866837]
[1724334851804,0.38111,2623.3,2623.0,0.00866837]
[1724334852211,0.76362,2623.2,2623.0,0.00866837]
[1724334852601,0.38113,2623.1,2623.0,0.00866837]
[1724334852911,0.75173,2623.1,2623.0,0.00866837]
[1724334853103,4.56373,2623.1,2623.0,0.00866837]
[1724334853412,9.56373,2623.1,2623.0,0.00866837]
[1724334853604,9.94463,2623.1,2623.0,0.00866837]
[1724334853804,0.7515,2623.1,2623.0,0.00866837]
[1724334854006,0.3706,2623.1,2623.0,0.00866837]
[1724334854313,4.56373,2623.1,2623.0,0.00866837]
[1724334855007,0.3825,2623.2,2623.0,0.00866837]
[1724334855201,3.5889,2623.4,2623.0,0.38980837]
[1724334855406,3.584,2623.4,2623.0,0.00866837]
[1724334855606,0.38113,2623.1,2623.0,0.00866837]
[1724334855918,0.38111,2623.3,2623.0,0.00866837]
[1724334856112,0.38113,2623.1,2623.0,0.00866837]
[1724334856617,4.19313,2623.1,2623.0,0.00866837]
[1724334857221,12.40093,2623.1,2623.0,0.00866837]
[1724334857712,7.40093,2623.1,2623.0,0.00866837]
[1724334857920,4.19313,2623.1,2623.0,0.00866837]
[1724334858117,3.812,2623.1,2623.0,0.00866837]
[1724334858421,0.38113,2623.1,2623.0,0.00866837]
[1724334858620,0.75793,2623.2,2623.0,0.00866837]
[1724334858927,3.584,2623.4,2623.0,0.00866837]
[1724334859213,0.00568101,2623.5,2623.3,0.3811]
[1724334859415,0.00568101,2623.5,2623.4,0.38109]
[1724334860136,0.00568101,2623.5,2623.2,3.2078]
[1724334860414,0.00568101,2623.5,2623.3,0.3811]
[1724334860715,0.00568101,2623.5,2623.3,3.5889]
[1724334861113,0.00568101,2623.5,2623.3,0.3811]
[1724334861316,0.00568101,2623.5,2623.3,3.5889]
[1724334861519,0.00568101,2623.5,2623.4,0.38109]
[1724334862120,7.2968,2624.0,2623.4,3.812]
[1724334862121,0.38105,2623.7,2623.4,3.812]
[1724334862417,0.38107,2623.6,2623.3,3.5889]
[1724334862819,0.38107,2623.6,2623.3,3.2078]
[1724334863225,0.38106,2623.7,2623.3,0.3811]
[1724334863515,3.2078,2624.0,2623.4,3.58888]
[1724334863706,3.2078,2624.0,2623.5,0.38107]
[1724334863912,0.38102,2623.9,2623.4,3.2078]
[1724334864110,0.38102,2623.9,2623.5,0.38107]
[1724334864314,3.2078,2624.0,2623.4,3.2078]
[1724334864624,3.2078,2624.0,2623.3,0.3811]
[1724334864820,0.95251,2624.0,2623.4,0.38109]
[1724334865020,0.95251,2624.0,2623.4,3.2078]
[1724334865319,0.38109,2623.4,2623.1,0.73623]
[1724334865619,0.95259,2623.8,2623.1,3.5629]
[1724334865620,0.38112,2623.2,2623.1,3.5629]
[1724334865819,3.2078,2623.8,2623.1,0.3551]
[1724334865820,0.95266,2623.6,2623.1,0.3551]
[1724334866015,0.7341,2623.7,2623.2,0.38112]
[1724334866016,0.38108,2623.5,2623.2,0.38112]
[1724334866320,0.7341,2623.7,2623.4,0.38108]
[1724334866321,0.38105,2623.7,2623.4,0.38108]
[1724334866521,1.97896906,2624.0,2623.3,3.5889]
[1724334866522,0.38107,2623.6,2623.3,3.5889]
[1724334866725,0.38105,2623.7,2623.4,0.38109]
[1724334867019,0.95255,2623.9,2623.3,3.58889]
[1724334867321,0.38107,2623.6,2623.3,0.38109]
[1724334867518,0.38108,2623.5,2623.2,6.96911]
[1724334867918,0.38108,2623.5,2623.3,3.2078]
[1724334868120,0.38109,2623.4,2623.3,3.2078]
[1724334868318,0.95262,2623.7,2623.3,3.2078]
[1724334868319,0.38108,2623.5,2623.3,3.2078]
[1724334868515,0.95262,2623.7,2623.1,0.3551]
[1724334868717,0.38108,2623.5,2623.2,0.38111]
[1724334868916,0.38108,2623.5,2623.1,0.3551]
[1724334868917,0.38109,2623.4,2623.1,0.73623]
[1724334869226,0.38108,2623.5,2623.2,0.38112]
[1724334869522,10.72292251,2624.1,2623.0,0.00866837]
[1724334869523,5.18676906,2623.8,2623.0,0.00866837]
[1724334869722,0.38113,2623.1,2623.0,0.00866837]
[1724334870224,0.38113,2623.1,2622.6,3.2078]
[1724334870225,4.76484,2623.1,2622.6,3.2078]
[1724334870429,0.38116,2622.9,2622.6,3.589]
[1724334870721,0.38117,2622.9,2622.6,3.589]
[1724334870924,0.7286,2623.0,2622.6,3.2078]
[1724334871119,0.7286,2623.0,2622.3,0.7219]
[1724334871328,0.7286,2623.0,2622.3,0.00289788]
[1724334871329,0.95298,2622.7,2622.3,0.00289788]
[1724334871622,0.38123,2622.4,2622.3,0.00289788]
[1724334871818,0.95735471,2622.7,2622.3,0.00289788]
[1724334871819,2.93632377,2622.7,2622.3,0.00289788]
[1724334872411,0.38123,2622.4,2622.3,0.00289788]
[1724334874030,1.98334377,2622.7,2622.3,0.00289788]
[1724334874322,0.00437471,2622.7,2622.3,0.00289788]
[1724334874626,0.00437471,2622.7,2622.6,3.58901]
[1724334874829,0.00437471,2622.7,2622.6,0.38121]
[1724334875136,0.00437471,2622.7,2622.6,3.8128]
[1724334875622,0.00437471,2622.7,2622.6,7.40181]
[1724334876015,0.00437471,2622.7,2622.6,7.0206]
[1724334876215,0.00437471,2622.7,2622.6,3.8128]
[1724334876417,0.00437471,2622.7,2622.6,4.19401]
[1724334876729,0.00437471,2622.7,2622.6,3.8128]
[1724334877030,0.00437471,2622.7,2622.6,7.40181]
[1724334877232,0.00437471,2622.7,2622.6,7.0206]
[1724334877419,0.00437471,2622.7,2622.6,7.40181]
[1724334877932,0.00571777,2622.9,2622.8,0.38118]
[1724334878414,0.00571777,2622.9,2622.8,9.19398]
[1724334878617,0.00571777,2622.9,2622.8,4.19398]
[1724334879022,0.01053206,2622.9,2622.8,9.19398]
[1724334879420,0.01053206,2622.9,2622.8,4.19398]
[1724334880321,0.01053206,2622.9,2622.6,3.5816]
[1724334880518,0.01053206,2622.9,2622.7,0.38119]
[1724334880725,0.01053206,2622.9,2622.6,3.9628]
[1724334880920,0.38118,2622.8,2622.5,0.3549]
[1724334881227,0.01053206,2622.9,2622.3,0.00289788]
[1724334881525,0.3611,2622.8,2622.3,0.00289788]
[1724334881731,0.38123,2622.5,2622.3,0.00289788]
[1724334882430,0.3761,2622.7,2622.3,0.00289788]
[1724334882642,0.38123,2622.4,2622.3,0.00289788]
[1724334882930,0.39170206,2622.9,2622.4,0.38123]
[1724334883130,0.74820206,2622.9,2622.3,3.21069788]
[1724334883334,0.74820206,2622.9,2622.4,0.38122]
[1724334883526,0.74820206,2622.9,2622.5,0.38122]
[1724334883730,0.36703206,2622.9,2622.5,0.38122]
[1724334884124,0.74819206,2622.9,2622.5,0.38122]
[1724334884625,0.74819206,2622.9,2622.3,3.21069788]
[1724334884832,0.74820206,2622.9,2622.5,0.38121]
[1724334885125,0.74820206,2622.9,2622.4,0.38123]
[1724334885525,2.34600112,2622.9,2622.3,3.21069788]
[1724334885720,2.34600112,2622.9,2622.3,0.00289788]
[1724334885721,0.38123,2622.4,2622.3,0.00289788]
[1724334886135,6.17379906,2622.4,2622.3,0.00289788]
[1724334886433,4.55013,2622.4,2622.3,0.00289788]
[1724334886627,6.52909906,2622.4,2622.3,0.00289788]
[1724334887427,1.97896906,2622.6,2622.4,0.38123]
[1724334887628,1.97896906,2622.5,2622.3,0.38413788]
[1724334887821,0.38121,2622.6,2622.5,0.38122]
[1724334887822,1.97896906,2622.6,2622.5,0.38122]
[1724334888231,6.41763251,2622.8,2622.6,0.38121]
[1724334888232,1.97896906,2622.7,2622.6,0.38121]
[1724334888432,5.54176906,2622.8,2622.6,0.38121]
[1724334888628,5.54176906,2622.8,2622.4,3.2078]
[1724334888629,0.38119,2622.7,2622.5,0.38121]
[1724334888834,1.97896906,2622.7,2622.4,3.2078]
[1724334889031,0.38121,2622.6,2622.3,3.59194788]
[1724334889522,1.97896906,2622.7,2622.3,3.21069788]
[1724334889834,5.92295906,2622.8,2622.5,0.38121]
[1724334890221,5.54176906,2622.8,2622.3,3.21069788]
[1724334890424,0.3812,2622.7,2622.4,0.38123]
[1724334890733,1.97896906,2622.7,2622.3,0.00289788]
[1724334890931,0.38123,2622.5,2622.3,0.00289788]
[1724334891232,2.36015906,2622.7,2622.5,0.38122]
[1724334891435,0.38119,2622.7,2622.5,0.38122]
[1724334891936,0.38119,2622.7,2622.4,0.38123]
[1724334892120,0.38123,2622.5,2622.3,3.21069788]
[1724334892323,3.5628,2622.8,2622.3,0.00289788]
[1724334892324,0.38123,2622.4,2622.3,0.00289788]
[1724334892728,5.14792,2622.4,2622.3,0.00289788]
[1724334892928,7.50228906,2622.4,2622.3,0.00289788]
[1724334893136,1.33438,2622.3,2622.2,0.00571777]
[1724334893333,0.38133,2621.8,2621.4,5.337]
[1724334893534,0.38133,2621.8,2621.6,3.58914]
[1724334893736,4.8409,2622.2,2621.9,0.3813]
[1724334893930,5.22217,2622.2,2621.9,0.3813]
[1724334894143,0.38128,2622.1,2621.9,0.00476738]
[1724334894635,0.38128,2622.1,2621.9,0.38607738]
[1724334895031,0.38129,2622.0,2621.9,0.00476738]
[1724334895235,4.8409,2622.2,2621.9,0.00476738]
[1724334895429,4.8409,2622.2,2622.0,0.38128]
[1724334895736,2.36775196,2622.4,2622.1,0.38127]
[1724334895937,0.38126,2622.3,2622.0,0.38128]
[1724334896138,2.36775196,2622.4,2621.9,3.21256738]
[1724334896434,2.36775196,2622.4,2622.2,0.38126]
[1724334896435,0.38123,2622.4,2622.2,0.38126]
[1724334896731,16.17131196,2622.6,2622.1,0.38127]
[1724334897040,16.17131196,2622.6,2621.9,3.97206738]
[1724334897041,0.38128,2622.1,2621.9,3.97206738]
[1724334897429,0.38127,2622.2,2621.9,3.97206738]
[1724334897646,0.38127,2622.2,2621.9,3.59076738]
[1724334897941,1.98651196,2622.5,2622.0,0.38129]
[1724334898130,0.38127,2622.2,2621.9,3.97206738]
[1724334898330,0.38127,2622.2,2622.0,0.38129]
[1724334898537,2.93959196,2622.5,2622.0,0.38129]
[1724334898731,0.38126,2622.3,2622.1,0.38127]
[1724334899037,0.38126,2622.2,2622.0,0.38128]
[1724334899230,0.38126,2622.2,2622.0,0.38129]
[1724334899826,2.93959196,2622.5,2622.1,0.38127]
[1724334899827,1.98651196,2622.5,2622.1,0.38127]
[1724334900032,0.38124,2622.4,2621.9,3.59076738]
[1724334900234,0.38126,2622.2,2621.9,3.59076738]
[1724334900438,2.93959196,2622.5,2621.9,0.38296738]
[1724334900742,0.38124,2622.4,2621.9,3.59076738]
[1724334900940,1.98651196,2622.7,2622.2,3.2078]
[1724334901127,0.01053206,2622.9,2622.7,0.38118]
[1724334901327,0.01053206,2622.9,2622.8,0.38118]
[1724334901731,2.36757196,2623.6,2623.2,0.38111]
[1724334901927,0.38106,2623.6,2623.2,0.38111]
[1724334902338,6.81041196,2623.8,2623.1,0.38113]
[1724334902536,6.81041196,2623.8,2623.1,3.2078]
[1724334902537,3.2078,2623.7,2623.1,3.2078]
[1724334902739,3.2078,2623.4,2623.1,0.00571777]
[1724334902931,0.38112,2623.2,2623.1,0.00571777]
[1724334903334,1.98651196,2623.5,2623.1,0.00571777]
[1724334903935,0.38112,2623.2,2623.1,0.00571777]
[1724334904332,3.812,2623.2,2623.1,0.00571777]
[1724334904644,0.3811,2623.4,2623.1,0.00571777]
[1724334904839,0.38108,2623.5,2623.1,0.00571777]
[1724334905041,0.38107,2623.5,2623.1,0.00571777]
[1724334905239,0.38111,2623.3,2623.1,0.00571777]
[1724334905442,1.99659583,2623.7,2623.1,0.00571777]
[1724334905443,0.38112,2623.2,2623.1,0.00571777]
[1724334905638,3.58892,2623.2,2623.1,0.00571777]
[1724334905940,4.19312,2623.2,2623.1,0.00571777]
[1724334906147,3.812,2623.2,2623.1,0.00571777]
[1724334906336,1.98651196,2623.6,2623.1,0.00571777]
[1724334906536,0.3811,2623.4,2623.1,0.00571777]
[1724334906745,0.38111,2623.3,2623.1,0.00571777]
[1724334906941,0.38108,2623.5,2623.1,0.00571777]
[1724334907137,0.01008387,2623.7,2623.1,0.00571777]
[1724334907138,1.99659583,2623.7,2623.1,0.00571777]
[1724334907338,1.99659583,2623.7,2623.2,0.38112]
[1724334907339,2.37764583,2623.7,2623.2,0.38112]
[1724334907646,0.39113387,2623.7,2623.2,0.38111]
[1724334907946,0.01008387,2623.7,2623.5,0.38107]
[1724334908334,0.01008387,2623.7,2623.6,4.19226]
[1724334908541,0.01008387,2623.7,2623.6,0.38106]
[1724334908844,0.01008387,2623.7,2623.6,9.19226]
[1724334909933,6.07551196,2624.6,2623.6,8.8112]
[1724334910133,3.2078,2624.8,2623.5,7.54068]
[1724334910134,3.2078,2624.8,2624.2,0.38096]
[1724334910343,3.2078,2624.8,2624.3,0.3547]
[1724334910550,3.2078,2624.8,2624.3,3.5625]
[1724334910739,3.2078,2624.8,2624.4,0.38093]
[1724334910939,3.21156317,2624.8,2624.5,0.38093]
[1724334911142,0.00376317,2624.8,2624.4,0.00480006]
[1724334911341,0.00376317,2624.8,2624.6,3.2078]
[1724334911648,0.00376317,2624.8,2624.7,0.3809]
[1724334911845,0.00376317,2624.8,2624.7,9.1905]
[1724334912039,0.00376317,2624.8,2624.7,8.8096]
[1724334912235,0.00376317,2624.8,2624.7,9.1905]
[1724334912436,0.00376317,2624.8,2624.7,3.8096]
[1724334912640,0.38093,2624.5,2624.4,0.01051783]
[1724334912856,3.58873,2624.5,2624.4,0.01051783]
[1724334913043,1.1146,2624.7,2624.4,0.01051783]
[1724334913239,0.7414,2624.7,2624.4,0.01051783]
[1724334913446,0.00376317,2624.8,2624.4,0.01051783]
[1724334914350,3.2078,2624.7,2624.4,0.01051783]
[1724334914647,3.58871,2624.7,2624.4,0.01051783]
[1724334914951,0.38466317,2624.8,2624.4,0.01051783]
[1724334915146,0.00376317,2624.8,2624.4,0.01051783]
[1724334915353,3.21156317,2624.8,2624.4,0.01051783]
[1724334915743,0.00376317,2624.8,2624.4,0.01051783]
[1724334916055,3.58871,2624.7,2624.4,0.01051783]
[1724334916239,0.38091,2624.7,2624.4,0.01051783]
[1724334916747,0.00376317,2624.8,2624.4,0.01051783]
[1724334917539,0.38465317,2624.8,2624.4,0.01051783]
[1724334917945,0.00376317,2624.8,2624.4,3.21831783]
[1724334918156,0.38465317,2624.8,2624.4,0.01051783]
[1724334918537,0.00376317,2624.8,2624.4,0.01051783]
[1724334919544,0.00376317,2624.8,2624.5,0.38092]
[1724334920046,0.00376317,2624.8,2624.4,0.01051783]
[1724334920246,0.00376317,2624.8,2624.6,3.58871]
[1724334920548,0.00376317,2624.8,2624.7,0.3809]
[1724334920754,0.00376317,2624.8,2624.7,4.1905]
[1724334920942,3.2078,2625.3,2624.9,0.38086]
[1724334921137,3.2078,2625.3,2624.8,0.38088]
[1724334921138,3.2078,2625.0,2624.8,0.38088]
[1724334921336,0.38084,2625.1,2624.6,0.3809]
[1724334921547,3.2078,2625.3,2624.5,0.7234]
[1724334921852,3.21177809,2625.3,2624.7,3.2078]
[1724334922043,4.16381809,2625.3,2624.7,3.2078]
[1724334922243,4.16381809,2625.3,2624.4,0.01051783]
[1724334922244,4.16381809,2625.3,2624.4,3.21831783]
[1724334922437,3.21177809,2625.3,2624.7,3.2078]
[1724334922642,3.21177809,2625.3,2624.4,3.21831783]
[1724334922951,0.38085,2625.1,2624.6,0.38091]
[1724334923146,3.21177809,2625.3,2624.5,0.38091]
[1724334923448,3.21177809,2625.3,2624.6,3.2078]
[1724334923449,0.38085,2625.1,2624.6,3.2078]
[1724334923651,0.38086,2625.0,2624.6,3.58871]
[1724334924055,0.38086,2625.0,2624.6,3.2078]
[1724334924345,0.38087,2624.9,2624.6,3.2078]
[1724334924544,4.16381809,2625.3,2624.4,0.01051783]
[1724334924545,0.95212,2625.1,2624.4,0.01051783]
[1724334924744,0.3533,2624.8,2624.5,3.2078]
[1724334924946,0.3533,2624.8,2624.4,0.01051783]
[1724334925252,0.3533,2624.8,2624.4,3.21831783]
[1724334925848,3.21177809,2625.3,2624.9,0.38086]
[1724334926044,3.21177809,2625.3,2624.7,3.2078]
[1724334926247,3.2078,2625.0,2624.4,0.01051783]
[1724334926455,0.00397809,2625.3,2624.7,3.2078]
[1724334926456,3.21177809,2625.3,2624.7,3.2078]
[1724334926645,0.38085,2625.1,2624.7,0.38089]
[1724334926839,0.38085,2625.1,2624.4,3.21831783]
[1724334927040,0.38083,2625.2,2624.8,0.38087]
[1724334927235,0.38083,2625.2,2624.9,0.38087]
[1724334927547,3.21177809,2625.3,2624.9,0.38086]
[1724334927739,3.59259809,2625.3,2624.9,0.38086]
[1724334927947,3.21177809,2625.3,2624.9,0.38086]
[1724334928148,3.21177809,2625.3,2625.1,0.38084]
[1724334928350,0.38479809,2625.3,2624.8,0.7353]
[1724334928649,0.00397809,2625.3,2625.1,0.38083]
[1724334929049,0.00397809,2625.3,2625.2,0.38083]
[1724334929450,0.00397809,2625.3,2625.2,4.18963]
[1724334929756,0.00397809,2625.3,2625.2,3.8088]
[1724334930048,0.00397809,2625.3,2625.2,7.39743]
[1724334931755,0.00397809,2625.3,2625.2,4.18963]
[1724334932056,0.00397809,2625.3,2625.2,7.0166]
[1724334932252,0.00071501,2625.3,2625.2,7.0166]
[1724334932561,0.00071501,2625.3,2625.0,0.38086]
[1724334932754,0.00071501,2625.3,2625.2,3.2078]
[1724334933053,0.00071501,2625.3,2625.2,7.39743]
[1724334933355,0.00071501,2625.3,2624.8,3.9431]
[1724334933547,0.00071501,2625.3,2625.0,0.38085]
[1724334933957,0.00071501,2625.3,2624.5,2.98084009]
[1724334934147,1.31696501,2625.3,2624.5,2.98084009]
[1724334934348,0.3558,2625.2,2624.6,0.38091]
[1724334934858,0.38086,2625.0,2624.6,0.38091]
[1724334935256,0.38087,2624.9,2624.5,0.38092]
[1724334935454,0.38089,2624.8,2624.4,3.95845783]
[1724334935655,0.38088,2624.9,2624.5,0.38092]
[1724334935856,0.38086,2625.0,2624.6,0.38091]
[1724334936058,0.3558,2625.2,2624.4,3.57751783]
[1724334936248,0.73663,2625.2,2624.8,0.38088]
[1724334936455,0.3558,2625.2,2624.9,0.38087]
[1724334936858,0.73663,2625.2,2624.9,0.38087]
[1724334937155,0.73663,2625.2,2624.9,0.38086]
[1724334937156,0.3558,2625.2,2624.9,0.38086]
[1724334937347,0.73664,2625.2,2624.9,0.38086]
[1724334937554,3.2078,2625.1,2624.5,3.2078]
[1724334938059,0.3558,2625.2,2624.5,3.2078]
[1724334938060,0.3558,2625.2,2624.5,7.0174]
[1724334938251,0.3558,2625.2,2624.9,0.38087]
[1724334938958,0.3558,2625.2,2625.0,0.38085]
[1724334939163,0.36491501,2625.3,2624.8,3.2078]
[1724334939653,0.00071501,2625.3,2625.2,0.38083]
[1724334940049,0.00071501,2625.3,2625.2,9.18963]
[1724334940462,0.00071501,2625.3,2625.1,0.38083]
[1724334940758,0.00071501,2625.3,2624.9,3.5828]
[1724334940759,0.00071501,2625.3,2625.2,0.38083]
[1724334941254,0.00071501,2625.3,2625.2,4.18963]
[1724334941454,0.00071501,2625.3,2625.2,7.39743]
[1724334941865,0.00071501,2625.3,2625.2,13.34951]
[1724334942261,0.00071501,2625.3,2625.2,13.70391]
[1724334942861,0.00071501,2625.3,2625.2,12.75183]
[1724334943165,0.00071501,2625.3,2625.2,7.75183]
[1724334943561,0.00071501,2625.3,2625.2,4.1632]
[1724334943963,0.38152501,2625.3,2624.9,3.96366]
[1724334944155,0.38152501,2625.3,2624.9,3.5828]
[1724334944156,0.00071501,2625.3,2624.9,3.5828]
[1724334944461,0.00071501,2625.3,2625.2,0.38083]
[1724334944651,0.00071501,2625.3,2625.2,3.2078]
[1724334944857,0.00071501,2625.3,2625.2,7.0166]
[1724334945462,0.00071501,2625.3,2625.2,3.2078]
[1724334946354,0.00071501,2625.3,2625.1,0.38083]
[1724334946659,0.00071501,2625.3,2625.2,3.2078]
[1724334947059,0.00071501,2625.3,2624.9,0.375]
[1724334947254,0.00071501,2625.3,2624.8,8.5418]
[1724334947255,0.00071501,2625.3,2624.8,5.334]
[1724334947466,0.38083,2625.2,2624.8,5.71488]
[1724334947667,0.00071501,2625.3,2624.9,3.58866]
[1724334947866,0.38153501,2625.3,2624.9,3.58866]